[Event "Turniej 30-lecia Liceum im. Józefa Bema"]
[Site "Warsaw, Poland"]
[Date "????.??.??"]
[Round "5.3"]
[White "Praczukowski, Stanislaw"]
[Black "Adamski, Jan"]
[Result "0-1"]
[TimeControl "0:10:02"]
[WhiteElo "2113"]
[BlackElo "2127"]

1. d4 {[%clk 00:10:03]} {[%emt 00:00:01]} Nf6 {[%clk 00:10:03]} {[%emt
00:00:01]} 2. c4 {[%clk 00:09:59]} {[%emt 00:00:06]} e6 {[%clk 00:10:04]}
{[%emt 00:00:01]} 3. Nf3 {[%clk 00:09:57]} {[%emt 00:00:04]} Bb4+ {[%clk
00:10:04]} {[%emt 00:00:02]} 4. Nbd2 {[%clk 00:09:58]} O-O {[%clk 00:10:04]}
{[%emt 00:00:03]} 5. g3 {[%clk 00:09:59]} b6 {[%clk 00:09:58]} {[%emt
00:00:08]} 6. Bg2 {[%clk 00:09:58]} {[%emt 00:00:02]} Bb7 {[%clk 00:09:59]}
{[%emt 00:00:01]} 7. O-O {[%clk 00:09:58]} {[%emt 00:00:02]} Bxd2 {[%clk
00:09:41]} {[%emt 00:00:20]} 8. Bxd2 {[%clk 00:09:49]} {[%emt 00:00:11]} d6
{[%clk 00:09:37]} {[%emt 00:00:06]} 9. Bc3 {[%clk 00:09:46]} {[%emt 00:00:05]}
Nbd7 {[%clk 00:08:56]} {[%emt 00:00:43]} 10. b3 {[%clk 00:09:33]} {[%emt
00:00:15]} Qe7 {[%clk 00:08:54]} {[%emt 00:00:05]} 11. Rc1 {[%clk 00:09:25]}
{[%emt 00:00:10]} a6 {[%clk 00:08:30]} {[%emt 00:00:26]} 12. Bb2 {[%clk
00:09:22]} {[%emt 00:00:04]} Be4 {[%clk 00:07:53]} {[%emt 00:00:40]} 13. Qd2
{[%clk 00:09:12]} {[%emt 00:00:12]} Rfd8 {[%clk 00:07:46]} {[%emt 00:00:09]} 14.
Rfd1 {[%clk 00:09:13]} {[%emt 00:00:02]} Rac8 {[%clk 00:06:34]} {[%emt
00:01:13]} 15. Qf4 {[%clk 00:08:50]} {[%emt 00:00:25]} h6 {[%clk 00:06:24]}
{[%emt 00:00:12]} 16. h3 {[%clk 00:08:29]} {[%emt 00:00:24]} Ba8 {[%clk
00:05:10]} {[%emt 00:01:17]} 17. Qh4 {[%clk 00:08:02]} {[%emt 00:00:28]} Kf8
{[%clk 00:04:52]} {[%emt 00:00:20]} 18. Qf4 {[%clk 00:07:29]} {[%emt 00:00:35]}
Nh5 {[%clk 00:04:44]} {[%emt 00:00:10]} 19. Qd2 {[%clk 00:07:09]} {[%emt
00:00:22]} Nhf6 {[%clk 00:04:41]} {[%emt 00:00:05]} 20. Qf4 {[%clk 00:07:06]}
{[%emt 00:00:05]} Nh5 {[%clk 00:04:42]} {[%emt 00:00:01]} 21. Qd2 {[%clk
00:07:04]} {[%emt 00:00:04]} Nhf6 {[%clk 00:04:42]} {[%emt 00:00:01]} 22. Qc2
{[%clk 00:06:50]} {[%emt 00:00:17]} Be4 {[%clk 00:04:31]} {[%emt 00:00:13]} 23.
Qc3 {[%clk 00:06:48]} {[%emt 00:00:04]} c6 {[%clk 00:03:32]} {[%emt 00:01:01]}
24. Ba3 {[%clk 00:06:40]} {[%emt 00:00:10]} c5 {[%clk 00:03:29]} {[%emt
00:00:05]} 25. Bb2 {[%clk 00:06:23]} {[%emt 00:00:19]} cxd4 {[%clk 00:03:15]}
{[%emt 00:00:15]} 26. Qxd4 {[%clk 00:06:16]} {[%emt 00:00:09]} Nc5 {[%clk
00:02:57]} {[%emt 00:00:21]} 27. Ba3 {[%clk 00:05:49]} {[%emt 00:00:29]} Bb7
{[%clk 00:02:40]} {[%emt 00:00:15]} 28. Qf4 {[%clk 00:05:19]} {[%emt 00:00:36]}
a5 {[%clk 00:02:32]} {[%emt 00:00:10]} 29. Qh4 {[%clk 00:05:00]} {[%emt
00:00:20]} e5 {[%clk 00:02:11]} {[%emt 00:00:24]} 30. g4 {[%clk 00:04:35]}
{[%emt 00:00:27]} Nfe4 {[%clk 00:02:03]} {[%emt 00:00:10]} 31. Qxe7+ {[%clk
00:04:25]} {[%emt 00:00:11]} Kxe7 {[%clk 00:02:04]} 32. Nd2 {[%clk 00:03:56]}
{[%emt 00:00:32]} Nxd2 {[%clk 00:01:55]} {[%emt 00:00:11]} 33. Bxb7 {[%clk
00:03:43]} {[%emt 00:00:15]} Ndxb3 {[%clk 00:01:20]} {[%emt 00:00:37]} 34. Bxc5
{[%clk 00:03:38]} {[%emt 00:00:06]} Nxc1 {[%clk 00:01:06]} {[%emt 00:00:16]} 35.
Bxb6 {[%clk 00:03:09]} {[%emt 00:00:32]} Nxe2+ {[%clk 00:00:53]} {[%emt
00:00:14]} 36. Kf1 {[%clk 00:03:10]} Nc3 {[%clk 00:00:34]} {[%emt 00:00:21]} 37.
Rd3 {[%clk 00:02:46]} {[%emt 00:00:26]} Na4 {[%clk 00:00:22]} {[%emt 00:00:14]}
38. Bxd8+ {[%clk 00:02:03]} {[%emt 00:00:45]} Rxd8 {[%clk 00:00:22]} {[%emt
00:00:02]} 39. Rb3 {[%clk 00:01:35]} {[%emt 00:00:30]} Nc5 {[%clk 00:00:22]}
{[%emt 00:00:02]} 40. Rb5 {[%clk 00:01:36]} Rb8 {[%clk 00:00:19]} {[%emt
00:00:05]} 41. Bd5 {[%clk 00:01:27]} {[%emt 00:00:11]} Rxb5 {[%clk 00:00:19]}
{[%emt 00:00:03]} 42. cxb5 {[%clk 00:01:28]} Na4 {[%clk 00:00:19]} {[%emt
00:00:02]} 43. Bc6 {[%clk 00:01:20]} {[%emt 00:00:10]} Nb6 {[%clk 00:00:20]}
{[%emt 00:00:01]} 44. Ke2 {[%clk 00:01:19]} {[%emt 00:00:03]} d5 {[%clk
00:00:21]} 45. h4 {[%clk 00:01:16]} {[%emt 00:00:06]} f6 {[%clk 00:00:21]}
{[%emt 00:00:01]} 46. Kf3 {[%clk 00:01:08]} {[%emt 00:00:10]} Kd6 {[%clk
00:00:22]} {[%emt 00:00:01]} 47. g5 {[%clk 00:00:31]} {[%emt 00:00:38]} hxg5
{[%emt 00:00:02]} 48. hxg5 Nc8 {[%clk 00:00:20]} {[%emt 00:00:04]} 49. g6
{[%clk 00:00:25]} {[%emt 00:00:10]} Na7 {[%clk 00:00:14]} {[%emt 00:00:09]} 50.
Bb7 {[%clk 00:00:10]} {[%emt 00:00:17]} Nxb5 {[%clk 00:00:13]} {[%emt
00:00:03]} 51. Kg4 {[%clk 00:00:12]} Nc3 {[%clk 00:00:06]} {[%emt 00:00:09]} 52.
a3 {[%emt 00:00:02]} Nb5 {[%clk 00:00:07]} 53. a4 {[%clk 00:00:14]} {[%emt
00:00:01]} Nc3 {[%clk 00:00:08]} 54. Kf5 {[%clk 00:00:13]} {[%emt 00:00:04]}
Nxa4 {[%clk 00:00:09]} {[%emt 00:00:01]} 55. f4 {[%clk 00:00:14]} exf4 {[%clk
00:00:09]} {[%emt 00:00:02]} 56. Kxf4 {[%clk 00:00:15]} {[%emt 00:00:01]} Nc5
{[%clk 00:00:11]} 57. Bc8 {[%clk 00:00:16]} {[%emt 00:00:02]} a4 {[%clk
00:00:11]} {[%emt 00:00:01]} 58. Ke3 {[%clk 00:00:17]} {[%emt 00:00:01]} a3
{[%clk 00:00:12]} {[%emt 00:00:02]} 59. Ba6 {[%clk 00:00:00]} {[%emt 00:00:04]}
0-1

[Event "Turniej 30-lecia Liceum im. Józefa Bema"]
[Site "Warsaw, Poland"]
[Date "????.??.??"]
[Round "5.4"]
[White "Krasiewicz, Robert"]
[Black "Kedzierski, Slawomir"]
[Result "0-1"]
[TimeControl "0:10:02"]
[WhiteElo "1948"]
[BlackElo "2061"]

1. c4 {[%clk 00:10:02]} Nf6 {[%clk 00:10:02]} {[%emt 00:00:03]} 2. g3 {[%clk
00:10:03]} {[%emt 00:00:01]} e6 {[%clk 00:10:02]} {[%emt 00:00:01]} 3. Bg2
{[%clk 00:10:04]} {[%emt 00:00:02]} d5 {[%clk 00:10:03]} 4. Nf3 {[%clk
00:10:05]} Be7 {[%clk 00:10:04]} {[%emt 00:00:01]} 5. O-O {[%clk 00:10:04]}
{[%emt 00:00:03]} O-O {[%clk 00:10:05]} {[%emt 00:00:02]} 6. b3 {[%clk
00:10:05]} {[%emt 00:00:01]} c5 {[%clk 00:10:03]} {[%emt 00:00:03]} 7. e3
{[%clk 00:10:05]} {[%emt 00:00:03]} Nc6 {[%clk 00:10:03]} {[%emt 00:00:01]} 8.
d3 {[%clk 00:09:50]} {[%emt 00:00:17]} b6 {[%clk 00:10:02]} {[%emt 00:00:03]} 9.
Na3 {[%clk 00:09:41]} {[%emt 00:00:11]} Bb7 {[%clk 00:09:58]} {[%emt 00:00:05]}
10. Bb2 {[%clk 00:09:40]} {[%emt 00:00:04]} Qd7 {[%clk 00:09:35]} {[%emt
00:00:25]} 11. Qe2 {[%clk 00:09:39]} {[%emt 00:00:04]} Rfd8 {[%clk 00:09:28]}
{[%emt 00:00:08]} 12. Rfd1 {[%clk 00:09:36]} {[%emt 00:00:04]} Rac8 {[%clk
00:09:17]} {[%emt 00:00:14]} 13. Nc2 {[%clk 00:09:33]} {[%emt 00:00:06]} h6
{[%clk 00:08:51]} {[%emt 00:00:27]} 14. Rd2 {[%clk 00:08:33]} {[%emt 00:01:03]}
a5 {[%clk 00:08:41]} {[%emt 00:00:12]} 15. Na3 {[%clk 00:08:09]} {[%emt
00:00:26]} Nb4 {[%clk 00:08:31]} {[%emt 00:00:11]} 16. Ne5 {[%clk 00:07:28]}
{[%emt 00:00:44]} Qc7 {[%clk 00:08:12]} {[%emt 00:00:20]} 17. Nb5 {[%clk
00:07:14]} {[%emt 00:00:17]} Qb8 {[%clk 00:08:05]} {[%emt 00:00:08]} 18. cxd5
{[%clk 00:06:11]} {[%emt 00:01:05]} Bxd5 {[%clk 00:06:02]} {[%emt 00:02:05]} 19.
Bxd5 {[%clk 00:05:32]} {[%emt 00:00:41]} Rxd5 {[%clk 00:05:39]} {[%emt
00:00:24]} 20. a3 {[%clk 00:04:52]} {[%emt 00:00:43]} Nc6 {[%clk 00:05:30]}
{[%emt 00:00:11]} 21. Nc4 {[%clk 00:04:35]} {[%emt 00:00:19]} Na7 {[%clk
00:04:42]} {[%emt 00:00:49]} 22. e4 {[%clk 00:03:53]} {[%emt 00:00:44]} Nxb5
{[%clk 00:03:07]} {[%emt 00:01:38]} 23. exd5 {[%clk 00:03:50]} {[%emt
00:00:06]} Nxd5 {[%clk 00:02:57]} {[%emt 00:00:11]} 24. a4 {[%clk 00:03:10]}
{[%emt 00:00:42]} Na7 {[%clk 00:02:17]} {[%emt 00:00:42]} 25. d4 {[%clk
00:02:49]} {[%emt 00:00:24]} Nc6 {[%clk 00:01:52]} {[%emt 00:00:27]} 26. Ne5
{[%clk 00:02:02]} {[%emt 00:00:49]} Nxd4 {[%clk 00:01:09]} {[%emt 00:00:45]} 27.
Bxd4 {[%clk 00:01:52]} {[%emt 00:00:12]} cxd4 {[%clk 00:01:08]} {[%emt
00:00:02]} 28. Rxd4 {[%clk 00:01:45]} {[%emt 00:00:09]} Bf6 {[%clk 00:00:49]}
{[%emt 00:00:22]} 29. Nd7 {[%clk 00:01:29]} {[%emt 00:00:19]} Bxd4 {[%clk
00:00:37]} {[%emt 00:00:14]} 30. Nxb8 {[%clk 00:01:27]} {[%emt 00:00:04]} Bxa1
{[%clk 00:00:37]} {[%emt 00:00:02]} 31. Nd7 {[%clk 00:01:22]} {[%emt 00:00:07]}
Rc7 {[%clk 00:00:23]} {[%emt 00:00:15]} 32. Ne5 {[%clk 00:01:18]} {[%emt
00:00:05]} Bd4 {[%clk 00:00:21]} {[%emt 00:00:04]} 33. Nc4 {[%clk 00:01:16]}
{[%emt 00:00:05]} Bc5 {[%clk 00:00:19]} {[%emt 00:00:05]} 34. Qe5 {[%clk
00:01:14]} {[%emt 00:00:03]} Rc8 {[%clk 00:00:18]} {[%emt 00:00:03]} 35. Kg2
{[%clk 00:01:06]} {[%emt 00:00:10]} g6 {[%clk 00:00:19]} {[%emt 00:00:01]} 36.
h4 {[%clk 00:01:06]} {[%emt 00:00:03]} h5 {[%clk 00:00:19]} {[%emt 00:00:02]}
37. Qe4 {[%clk 00:00:50]} {[%emt 00:00:16]} Bf8 {[%clk 00:00:17]} {[%emt
00:00:05]} 38. g4 {[%clk 00:00:43]} {[%emt 00:00:09]} hxg4 {[%clk 00:00:18]} 39.
Qxg4 {[%clk 00:00:44]} {[%emt 00:00:01]} Bg7 {[%clk 00:00:17]} {[%emt
00:00:03]} 40. Qf3 {[%clk 00:00:33]} {[%emt 00:00:13]} Rd8 {[%clk 00:00:14]}
{[%emt 00:00:05]} 41. h5 {[%clk 00:00:33]} {[%emt 00:00:02]} gxh5 {[%clk
00:00:15]} {[%emt 00:00:02]} 42. Qxh5 {[%clk 00:00:33]} {[%emt 00:00:01]} Nf4+
{[%clk 00:00:16]} 43. Kf3 {[%clk 00:00:31]} {[%emt 00:00:05]} Nxh5 {[%clk
00:00:17]} 44. Nxb6 {[%clk 00:00:32]} Rd3+ {[%clk 00:00:17]} {[%emt 00:00:02]}
45. Kg4 {[%clk 00:00:33]} {[%emt 00:00:01]} Nf6+ {[%clk 00:00:18]} {[%emt
00:00:01]} 0-1

[Event "Turniej 30-lecia Liceum im. Józefa Bema"]
[Site "Warsaw, Poland"]
[Date "????.??.??"]
[Round "5.5"]
[White "Rylski, Tadeusz"]
[Black "Szymczak, Rafal"]
[Result "0-1"]
[TimeControl "0:10:02"]
[WhiteElo "1358"]
[BlackElo "2021"]

1. d4 {[%clk 00:10:00]} {[%emt 00:00:02]} Nf6 {[%clk 00:10:01]} {[%emt
00:00:04]} 2. c4 {[%clk 00:10:01]} {[%emt 00:00:02]} c5 {[%clk 00:09:59]}
{[%emt 00:00:04]} 3. Nf3 {[%clk 00:09:50]} {[%emt 00:00:12]} cxd4 {[%clk
00:09:59]} {[%emt 00:00:02]} 4. Nxd4 {[%clk 00:09:49]} {[%emt 00:00:02]} Nc6
{[%clk 00:10:01]} {[%emt 00:00:01]} 5. Nc3 {[%clk 00:09:29]} {[%emt 00:00:23]}
d6 {[%clk 00:10:00]} {[%emt 00:00:02]} 6. g3 {[%emt 00:00:11]} Bd7 7. Bg2
{[%clk 00:09:18]} {[%emt 00:00:03]} g6 {[%clk 00:10:01]} {[%emt 00:00:03]} 8.
O-O {[%clk 00:09:08]} {[%emt 00:00:13]} Bg7 {[%clk 00:10:03]} 9. Be3 {[%clk
00:08:44]} {[%emt 00:00:26]} O-O {[%clk 00:09:59]} {[%emt 00:00:06]} 10. Qb3
{[%clk 00:08:19]} {[%emt 00:00:27]} Nxd4 {[%clk 00:08:13]} {[%emt 00:01:48]} 11.
Bxd4 {[%clk 00:08:13]} {[%emt 00:00:08]} Bc6 {[%clk 00:08:14]} 12. Rad1 {[%clk
00:07:27]} {[%emt 00:00:48]} Bxg2 {[%clk 00:08:07]} {[%emt 00:00:10]} 13. Kxg2
{[%clk 00:07:26]} {[%emt 00:00:03]} b6 {[%clk 00:08:01]} {[%emt 00:00:08]} 14.
e4 {[%clk 00:06:22]} {[%emt 00:01:05]} Qd7 {[%clk 00:08:00]} {[%emt 00:00:04]}
15. e5 {[%clk 00:05:36]} {[%emt 00:00:48]} dxe5 {[%clk 00:07:54]} {[%emt
00:00:08]} 16. Bxe5 {[%clk 00:05:27]} {[%emt 00:00:10]} Qc6+ {[%clk 00:07:00]}
{[%emt 00:00:56]} 17. Kg1 {[%clk 00:05:13]} {[%emt 00:00:16]} e6 {[%clk
00:05:54]} {[%emt 00:01:08]} 18. Nb5 {[%clk 00:04:27]} {[%emt 00:00:48]} a6
{[%clk 00:04:56]} {[%emt 00:01:01]} 19. Nd4 {[%clk 00:03:33]} {[%emt 00:00:56]}
Qc5 {[%clk 00:04:52]} {[%emt 00:00:07]} 20. Nf3 {[%clk 00:03:19]} {[%emt
00:00:15]} Rfd8 {[%clk 00:04:39]} {[%emt 00:00:15]} 21. Bd4 {[%clk 00:03:02]}
{[%emt 00:00:19]} Qh5 {[%clk 00:04:05]} {[%emt 00:00:35]} 22. Bxb6 {[%clk
00:01:59]} {[%emt 00:01:05]} Rxd1 {[%clk 00:04:05]} {[%emt 00:00:02]} 23. Rxd1
{[%clk 00:01:44]} {[%emt 00:00:16]} Rb8 {[%clk 00:03:57]} {[%emt 00:00:11]} 24.
Rd8+ {[%clk 00:01:31]} {[%emt 00:00:16]} Rxd8 {[%clk 00:03:58]} 25. Bxd8 {[%clk
00:01:32]} Ne8 {[%clk 00:03:15]} {[%emt 00:00:46]} 26. Kg2 {[%clk 00:01:08]}
{[%emt 00:00:26]} Qc5 {[%clk 00:02:56]} {[%emt 00:00:20]} 27. Qa4 {[%clk
00:00:47]} {[%emt 00:00:23]} Nd6 {[%clk 00:02:33]} {[%emt 00:00:25]} 28. Qxa6
{[%clk 00:00:24]} {[%emt 00:00:26]} Nxc4 {[%clk 00:02:29]} {[%emt 00:00:05]} 29.
Qa8 {[%clk 00:00:13]} {[%emt 00:00:13]} Bf8 {[%clk 00:02:27]} {[%emt 00:00:04]}
30. b3 {[%clk 00:00:11]} {[%emt 00:00:03]} Nb2 {[%clk 00:02:21]} {[%emt
00:00:08]} 31. Bf6 {[%clk 00:00:11]} {[%emt 00:00:02]} Nd3 {[%clk 00:02:19]}
{[%emt 00:00:04]} 32. Bd4 {[%clk 00:00:10]} {[%emt 00:00:03]} Qc2 {[%clk
00:02:17]} {[%emt 00:00:03]} 33. Qa4 {[%clk 00:00:04]} {[%emt 00:00:08]} h5
{[%clk 00:02:08]} {[%emt 00:00:12]} 34. Qc4 {[%clk 00:00:05]} Qd1 {[%clk
00:02:04]} {[%emt 00:00:06]} 35. Ng5 {[%clk 00:00:05]} {[%emt 00:00:03]} Be7
{[%clk 00:01:57]} {[%emt 00:00:08]} 36. h4 {[%clk 00:00:06]} Bxg5 {[%clk
00:01:58]} {[%emt 00:00:02]} 37. hxg5 {[%clk 00:00:07]} Ne1+ {[%clk 00:01:50]}
{[%emt 00:00:10]} 38. Kh3 {[%clk 00:00:06]} {[%emt 00:00:02]} Qg4+ {[%clk
00:01:51]} {[%emt 00:00:02]} 39. Kh2 {[%clk 00:00:06]} {[%emt 00:00:02]} Nf3+
{[%clk 00:01:52]} {[%emt 00:00:01]} 40. Kg2 {[%clk 00:00:05]} {[%emt 00:00:01]}
Nxd4 {[%clk 00:01:52]} {[%emt 00:00:03]} 41. Qc8+ {[%clk 00:00:03]} {[%emt
00:00:04]} Kg7 {[%clk 00:01:51]} {[%emt 00:00:03]} 42. Qc3 {[%clk 00:00:04]}
{[%emt 00:00:02]} Qf3+ {[%clk 00:01:45]} {[%emt 00:00:08]} 43. Kf1 {[%clk
00:00:05]} Qd5 {[%clk 00:01:43]} {[%emt 00:00:04]} 44. f4 {[%emt 00:00:02]} e5
{[%clk 00:01:42]} {[%emt 00:00:03]} 45. fxe5 {[%clk 00:00:06]} Qxe5 {[%clk
00:01:43]} {[%emt 00:00:01]} 46. Kg2 {[%clk 00:00:07]} Qe4+ {[%clk 00:01:43]}
{[%emt 00:00:02]} 47. Kh2 {[%clk 00:00:07]} {[%emt 00:00:02]} Qg4 {[%clk
00:01:38]} {[%emt 00:00:07]} 48. a4 {[%clk 00:00:08]} {[%emt 00:00:02]} Kh7
{[%clk 00:01:37]} {[%emt 00:00:04]} 49. Qc7 {[%clk 00:00:03]} {[%emt 00:00:06]}
Qe2+ {[%clk 00:01:33]} {[%emt 00:00:06]} 50. Kh3 {[%clk 00:00:04]} {[%emt
00:00:01]} Qe6+ {[%clk 00:01:33]} {[%emt 00:00:02]} 51. Kg2 {[%clk 00:00:05]}
Qxb3 {[%clk 00:01:34]} {[%emt 00:00:02]} 52. a5 {[%clk 00:00:06]} {[%emt
00:00:01]} Kg7 {[%clk 00:01:31]} {[%emt 00:00:05]} 53. a6 {[%clk 00:00:06]}
{[%emt 00:00:02]} Qa2+ {[%clk 00:01:31]} {[%emt 00:00:02]} 54. Kh3 {[%clk
00:00:06]} {[%emt 00:00:02]} Qxa6 {[%clk 00:01:32]} {[%emt 00:00:02]} 55. Qe5+
{[%clk 00:00:07]} Kh7 {[%clk 00:01:31]} {[%emt 00:00:03]} 56. Qxd4 {[%clk
00:00:08]} {[%emt 00:00:01]} Qe6+ {[%clk 00:01:33]} 57. Kg2 {[%clk 00:00:09]}
{[%emt 00:00:01]} Qf5 {[%clk 00:01:34]} {[%emt 00:00:01]} 58. Qe3 {[%clk
00:00:08]} {[%emt 00:00:02]} Kg7 {[%clk 00:01:34]} {[%emt 00:00:02]} 59. Kh2
{[%clk 00:00:08]} {[%emt 00:00:02]} Qg4 {[%clk 00:01:31]} {[%emt 00:00:05]} 60.
Kg2 {[%clk 00:00:09]} {[%emt 00:00:01]} h4 {[%clk 00:01:32]} {[%emt 00:00:02]}
61. Kh2 {[%clk 00:00:08]} {[%emt 00:00:03]} Qxg3+ {[%clk 00:01:32]} {[%emt
00:00:02]} 62. Qxg3 hxg3+ 63. Kxg3 {[%clk 00:00:07]} {[%emt 00:00:01]} Kf8
{[%clk 00:01:33]} {[%emt 00:00:01]} 64. Kf4 {[%clk 00:00:08]} {[%emt 00:00:01]}
Ke7 {[%clk 00:01:34]} {[%emt 00:00:01]} 65. Ke5 {[%clk 00:00:08]} {[%emt
00:00:01]} Ke8 {[%clk 00:01:33]} {[%emt 00:00:04]} 66. Kd6 {[%clk 00:00:03]}
{[%emt 00:00:07]} Kd8 {[%clk 00:01:31]} {[%emt 00:00:04]} 67. Kd5 {[%clk
00:00:04]} {[%emt 00:00:01]} Kd7 {[%clk 00:01:32]} {[%emt 00:00:01]} 68. Ke5
{[%clk 00:00:04]} {[%emt 00:00:02]} Ke7 {[%clk 00:01:33]} 69. Kd5 {[%clk
00:00:00]} {[%emt 00:00:03]} f5 {[%clk 00:01:33]} {[%emt 00:00:03]} 70. gxf6+
{[%clk 00:00:00]} {[%emt 00:00:01]} Kxf6 {[%clk 00:01:33]} 0-1

[Event "Turniej 30-lecia Liceum im. Józefa Bema"]
[Site "Warsaw, Poland"]
[Date "????.??.??"]
[Round "5.6"]
[White "Niedbal, Piotr"]
[Black "Szewczak, Anna"]
[Result "1-0"]
[TimeControl "0:10:02"]
[WhiteElo "1856"]
[BlackElo "2005"]

1. e4 {[%emt 00:09:05]} c5 {[%emt 00:00:02]} 2. Nf3 {[%emt 00:00:04]} Nc6
{[%emt 00:00:04]} 3. d4 cxd4 {[%emt 00:00:01]} 4. Nxd4 {[%emt 00:00:01]} Nf6
{[%emt 00:00:02]} 5. Nc3 {[%emt 00:00:01]} e6 {[%emt 00:00:04]} 6. Be2 {[%emt
00:00:08]} Bb4 {[%emt 00:00:09]} 7. Nxc6 {[%emt 00:00:09]} bxc6 {[%emt
00:00:14]} 8. Qd4 {[%emt 00:00:12]} Qa5 {[%emt 00:00:30]} 9. Bd2 {[%emt
00:00:19]} O-O {[%emt 00:00:36]} 10. O-O {[%emt 00:00:09]} Bc5 {[%emt
00:01:51]} 11. Qd3 {[%emt 00:00:02]} Qc7 {[%emt 00:00:13]} 12. Kh1 {[%emt
00:00:37]} d5 {[%emt 00:00:21]} 13. f4 {[%emt 00:00:20]} a5 {[%emt 00:00:36]}
14. Qf3 {[%emt 00:00:36]} Ba6 {[%emt 00:00:23]} 15. Bxa6 {[%emt 00:00:13]} Rxa6
{[%emt 00:00:01]} 16. f5 {[%emt 00:00:30]} Bd6 {[%emt 00:02:25]} 17. h3 {[%emt
00:00:33]} dxe4 {[%emt 00:00:34]} 18. Nxe4 {[%emt 00:00:05]} Nxe4 {[%emt
00:00:06]} 19. Qxe4 {[%emt 00:00:01]} exf5 {[%emt 00:00:14]} 20. Rxf5 {[%emt
00:00:08]} c5 {[%emt 00:00:09]} 21. Bc3 {[%emt 00:00:15]} Bg3 {[%emt 00:00:51]}
22. Qg4 {[%emt 00:00:33]} Rg6 {[%emt 00:00:02]} 23. Rg5 Bf4 {[%emt 00:00:48]}
24. Rxg6 {[%emt 00:00:24]} fxg6 {[%emt 00:00:10]} 25. Rf1 {[%emt 00:00:28]} 1-0

[Event "Turniej 30-lecia Liceum im. Józefa Bema"]
[Site "Warsaw, Poland"]
[Date "????.??.??"]
[Round "5.7"]
[White "Janeczko, Jakub"]
[Black "Siekierski, Pawel"]
[Result "1-0"]
[TimeControl "0:10:02"]
[WhiteElo "1661"]
[BlackElo "1889"]

1. e4 {[%clk 00:10:03]} c5 {[%clk 00:10:04]} 2. Nf3 {[%clk 00:10:03]} {[%emt
00:00:02]} d6 {[%clk 00:10:06]} 3. d4 {[%clk 00:10:04]} {[%emt 00:00:01]} cxd4
{[%clk 00:10:07]} {[%emt 00:00:01]} 4. Nxd4 {[%clk 00:10:05]} Nf6 {[%clk
00:10:08]} {[%emt 00:00:01]} 5. Nc3 {[%clk 00:10:06]} {[%emt 00:00:01]} a6
{[%clk 00:10:10]} 6. Bg5 {[%clk 00:10:07]} {[%emt 00:00:02]} e6 {[%clk
00:10:11]} {[%emt 00:00:01]} 7. f4 {[%clk 00:10:07]} Bd7 {[%clk 00:10:11]}
{[%emt 00:00:02]} 8. Qf3 {[%clk 00:10:07]} {[%emt 00:00:01]} Nc6 {[%clk
00:10:13]} 9. Nb3 {[%clk 00:09:46]} {[%emt 00:00:24]} Be7 {[%clk 00:10:11]}
{[%emt 00:00:03]} 10. O-O-O {[%clk 00:09:45]} {[%emt 00:00:03]} Qc7 {[%clk
00:10:11]} {[%emt 00:00:03]} 11. Kb1 {[%clk 00:09:32]} {[%emt 00:00:14]} h6
{[%clk 00:10:09]} {[%emt 00:00:04]} 12. Bh4 {[%clk 00:09:26]} {[%emt 00:00:08]}
b5 {[%clk 00:09:47]} {[%emt 00:00:25]} 13. Bg3 {[%clk 00:08:57]} {[%emt
00:00:30]} b4 {[%clk 00:09:33]} {[%emt 00:00:17]} 14. Ne2 {[%clk 00:08:52]}
{[%emt 00:00:02]} Rc8 {[%clk 00:09:24]} {[%emt 00:00:16]} 15. Rd2 {[%clk
00:08:46]} {[%emt 00:00:07]} d5 {[%clk 00:08:44]} {[%emt 00:00:42]} 16. exd5
{[%clk 00:08:32]} {[%emt 00:00:16]} Nxd5 {[%clk 00:08:43]} {[%emt 00:00:03]} 17.
f5 {[%clk 00:08:15]} {[%emt 00:00:19]} Qb6 {[%clk 00:08:15]} {[%emt 00:00:30]}
18. fxe6 {[%clk 00:08:06]} {[%emt 00:00:10]} Bxe6 {[%clk 00:08:15]} {[%emt
00:00:02]} 19. Rxd5 {[%clk 00:07:42]} {[%emt 00:00:26]} Bxd5 {[%clk 00:08:16]}
{[%emt 00:00:02]} 20. Qxd5 {[%clk 00:07:43]} Rd8 {[%clk 00:08:07]} {[%emt
00:00:11]} 21. Qf3 {[%clk 00:07:38]} {[%emt 00:00:07]} O-O {[%clk 00:07:32]}
{[%emt 00:00:38]} 22. Bf2 {[%clk 00:06:28]} {[%emt 00:01:12]} Qc7 {[%clk
00:07:25]} {[%emt 00:00:09]} 23. Ned4 {[%clk 00:06:16]} {[%emt 00:00:13]} Ne5
{[%clk 00:07:21]} {[%emt 00:00:06]} 24. Qe4 {[%clk 00:05:50]} {[%emt 00:00:28]}
Bf6 {[%clk 00:05:34]} {[%emt 00:01:50]} 25. Bg3 {[%clk 00:05:31]} {[%emt
00:00:21]} Rfe8 {[%clk 00:05:27]} {[%emt 00:00:09]} 26. Bd3 {[%clk 00:05:31]}
{[%emt 00:00:02]} Nxd3 {[%clk 00:04:44]} {[%emt 00:00:44]} 27. Qxe8+ {[%clk
00:05:05]} Rxe8 {[%clk 00:04:46]} 28. Bxc7 {[%clk 00:05:05]} {[%emt 00:00:02]}
Ne1 {[%clk 00:03:36]} {[%emt 00:01:12]} 29. Rg1 {[%clk 00:03:10]} {[%emt
00:01:57]} Nxg2 {[%clk 00:03:37]} {[%emt 00:00:01]} 30. Nf5 {[%clk 00:02:27]}
{[%emt 00:00:44]} Bg5 {[%clk 00:03:22]} {[%emt 00:00:18]} 31. a3 {[%clk
00:02:13]} {[%emt 00:00:15]} bxa3 {[%clk 00:03:23]} {[%emt 00:00:02]} 32. bxa3
{[%clk 00:02:14]} Re2 {[%clk 00:03:06]} {[%emt 00:00:18]} 33. Nbd4 {[%clk
00:01:51]} {[%emt 00:00:25]} Rd2 {[%clk 00:03:06]} {[%emt 00:00:01]} 34. Ba5
{[%clk 00:01:31]} {[%emt 00:00:23]} Rf2 {[%clk 00:03:07]} {[%emt 00:00:02]} 35.
Be1 {[%clk 00:01:24]} {[%emt 00:00:08]} Nxe1 {[%clk 00:03:05]} {[%emt
00:00:05]} 36. Rxe1 {[%clk 00:01:25]} Rxh2 {[%clk 00:03:06]} {[%emt 00:00:02]}
37. c4 {[%clk 00:01:19]} {[%emt 00:00:08]} Bf6 {[%clk 00:03:05]} {[%emt
00:00:03]} 38. c5 {[%clk 00:01:10]} {[%emt 00:00:11]} Rd2 {[%clk 00:03:00]}
{[%emt 00:00:08]} 39. c6 {[%clk 00:01:06]} {[%emt 00:00:06]} Bxd4 {[%clk
00:01:48]} {[%emt 00:01:14]} 40. c7 {[%clk 00:00:48]} {[%emt 00:00:19]} Rb2+
{[%clk 00:01:49]} {[%emt 00:00:01]} 41. Kc1 {[%clk 00:00:50]} {[%emt 00:00:01]}
Rf2 {[%clk 00:01:47]} {[%emt 00:00:04]} 42. Nxd4 {[%clk 00:00:35]} {[%emt
00:00:16]} 1-0